bitfinex/quotes_SOLUSD_20240829
["timestamp","ask_amount","ask_price","bid_price","bid_amount"]
[1724941932925,1.37548973,145.58,145.5,31.8235464]
[1724941933119,1.37548973,145.57,145.5,31.8235464]
[1724941933425,8.24518973,145.57,145.5,31.8235464]
[1724941936219,8.24518973,145.57,145.51,12.71942017]
[1724941936700,6.87,145.56,145.51,12.71942017]
[1724941936910,1.37548973,145.55,145.51,12.71942017]
[1724941937121,1.37548973,145.54,145.51,12.71942017]
[1724941937301,1.37548973,145.54,145.49,12.71942017]
[1724941938117,1.37548973,145.54,145.51,12.71942017]
[1724941938311,1.50097973,145.58,145.51,12.71942017]
[1724941938520,6.8698,145.57,145.51,12.71942017]
[1724941938711,1.37548973,145.56,145.51,12.71942017]
[1724941939033,2.57337211,145.56,145.51,12.71942017]
[1724941939221,1.37548973,145.56,145.51,12.71942017]
[1724941939535,8.24548973,145.56,145.51,12.71942017]
[1724941940030,6.8706,145.55,145.51,12.71942017]
[1724941940233,1.37548973,145.54,145.51,12.71942017]
[1724941941227,1.37548973,145.55,145.51,12.71942017]
[1724941941433,1.37548973,145.54,145.51,12.71942017]
[1724941942123,1.37548973,145.54,145.49,12.71942017]
[1724941942318,1.37548973,145.54,145.48,12.71942017]
[1724941942319,22.0058,145.53,145.48,12.71942017]
[1724941942523,1.37548973,145.52,145.48,12.71942017]
[1724941942727,1.37548973,145.51,145.48,12.71942017]
[1724941943243,1.37548973,145.51,145.47,12.71942017]
[1724941943409,1.37548973,145.51,145.45,12.71942017]
[1724941944137,8.24798973,145.51,145.4,2.78944882]
[1724941944430,8.24798973,145.51,145.46,12.71942017]
[1724941944837,8.24798973,145.51,145.39,15.7452]
[1724941944838,0.12549,145.5,145.39,15.7452]
[1724941945133,13.5206,145.47,145.36,253.2]
[1724941945432,13.5206,145.47,145.35,15.7452]
[1724941945433,1.37548973,145.46,145.35,15.7452]
[1724941945640,1.37548973,145.46,145.28,5.0]
[1724941945641,15.961,145.44,145.31,15.666]
[1724941945941,6.8773,145.41,145.35,12.71942017]
[1724941946109,1.50097973,145.4,145.35,12.71942017]
[1724941946304,7.57747973,145.4,145.35,12.71942017]
[1724941946820,7.45198973,145.4,145.35,12.71942017]
[1724941947019,7.45198973,145.4,145.37,12.71942017]
[1724941947809,7.45198973,145.4,145.35,12.71942017]
[1724941948132,7.45198973,145.4,145.33,31.87277427]
[1724941951143,14.32958973,145.4,145.33,31.87277427]
[1724941951643,7.45198973,145.4,145.33,31.87277427]
[1724941955256,14.32948973,145.4,145.33,31.87277427]
[1724941955831,7.45198973,145.4,145.35,31.87277427]
[1724941956822,7.45198973,145.4,145.29,6.5212]
[1724941956823,7.45198973,145.4,145.33,31.87277427]
[1724941957020,7.45198973,145.4,145.31,31.87277427]
[1724941957349,6.8786,145.38,145.31,31.87277427]
[1724941957543,23.2847,145.36,145.27,15.666]
[1724941957748,1.37548973,145.35,145.27,31.87277427]
[1724941958232,1.37548973,145.35,145.29,31.87277427]
[1724941959238,1.37548973,145.35,145.31,31.87277427]
[1724941960730,16.39868973,145.39,145.33,31.87277427]
[1724941961237,23.27668973,145.39,145.31,31.87277427]
[1724941962123,6.8787,145.38,145.31,31.87277427]
[1724941962432,1.37548973,145.37,145.31,31.87277427]
[1724941963230,1.37548973,145.38,145.33,31.87277427]
[1724941965723,16.39868973,145.39,145.33,31.87277427]
[1724941965923,16.39868973,145.39,145.35,31.87277427]
[1724941966134,16.39868973,145.39,145.3,16.6]
[1724941966135,6.0765,145.4,145.37,31.87277427]
[1724941966327,1.37548973,145.39,145.35,31.87277427]
[1724941967035,1.37548973,145.39,145.3,16.6]
[1724941967036,1.37548973,145.39,145.33,31.87277427]
[1724941967231,1.37548973,145.39,145.35,31.87277427]
[1724941968445,1.37548973,145.42,145.37,31.87277427]
[1724941970633,1.37548973,145.42,145.35,31.87277427]
[1724941971451,1.37548973,145.42,145.27,21.87057216]
[1724941971649,1.37548973,145.42,145.32,31.87277427]
[1724941971650,0.25098,145.41,145.32,31.87277427]
[1724941971850,1.62646973,145.41,145.32,31.87277427]
[1724941972042,1.50097973,145.41,145.34,31.87277427]
[1724941972370,8.37817973,145.41,145.34,31.87277427]
[1724941972739,6.8776,145.4,145.34,31.87277427]
[1724941972941,1.37548973,145.39,145.32,31.87277427]
[1724941973460,6.4899,145.38,145.32,31.87277427]
[1724941973758,1.37548973,145.37,145.32,31.87277427]
[1724941974860,6.4899,145.38,145.34,31.87277427]
[1724941975038,1.37548973,145.41,145.36,31.87277427]
[1724941977338,1.37548973,145.41,145.37,1.21490978]
[1724941977543,1.37548973,145.41,145.36,31.87277427]
[1724941980736,16.5499,145.43,145.4,31.87277427]
[1724941981233,1.37548973,145.45,145.4,31.87277427]
[1724941981439,7.92218973,145.46,145.42,31.87277427]
[1724941981644,7.92218973,145.46,145.4,31.87277427]
[1724941981645,1.37548973,145.45,145.4,31.87277427]
[1724941982244,7.92218973,145.46,145.42,31.87277427]
[1724941983362,15.208,145.47,145.44,31.87277427]
[1724941984237,1.37548973,145.49,145.45,1.37496552]
[1724941984554,1.37548973,145.49,145.44,31.87277427]
[1724941984745,1.37548973,145.48,145.42,31.87277427]
[1724941985163,1.37548973,145.49,145.44,31.87277427]
[1724941986660,1.37548973,145.48,145.42,31.87277427]
[1724941987237,6.5003,145.5,145.42,31.87277427]
[1724941988344,1.37548973,145.49,145.44,31.87277427]
[1724941988958,2.57422874,145.49,145.44,31.87277427]
[1724941990865,1.19873901,145.49,145.46,31.87277427]
[1724941991056,1.37548973,145.53,145.48,31.87277427]
[1724941991263,7.58508973,145.54,145.5,31.87277427]
[1724941991445,6.2096,145.54,145.5,31.87277427]
[1724941991645,15.2983,145.55,145.52,31.87277427]
[1724941991949,1.37548973,145.57,145.52,31.87277427]
[1724941994549,15.2983,145.59,145.56,31.87277427]
[1724941994963,6.6144,145.61,145.57,1.37356645]
[1724941995268,7.98988973,145.61,145.57,1.37356645]
[1724941995769,7.98988973,145.61,145.56,31.87277427]
[1724941995770,1.37548973,145.6,145.56,31.87277427]
[1724941999571,1.37548973,145.6,145.54,31.87277427]
[1724942000767,1.37548973,145.6,145.57,31.87277427]
[1724942001146,1.37548973,145.62,145.57,31.87277427]
[1724942001871,1.37548973,145.62,145.59,31.87277427]
[1724942002470,1.37548973,145.62,145.57,31.87277427]
[1724942002862,1.37548973,145.62,145.59,31.87277427]
[1724942003575,15.5905,145.63,145.59,31.87277427]
[1724942003576,16.96598973,145.63,145.59,31.87277427]
[1724942004460,16.96598973,145.63,145.57,31.87277427]
[1724942005274,23.83278973,145.63,145.57,31.87277427]
[1724942005772,16.96598973,145.63,145.57,31.87277427]
[1724942006478,16.96598973,145.63,145.58,1.37361842]
[1724942006679,16.96598973,145.63,145.58,1.37362248]
[1724942006979,16.96598973,145.63,145.57,31.87277427]
[1724942007179,16.96598973,145.63,145.58,1.37362093]
[1724942007391,16.96598973,145.63,145.57,31.87277427]
[1724942007982,16.96598973,145.63,145.58,1.37362081]
[1724942008187,16.96598973,145.63,145.57,31.87277427]
[1724942010971,23.83268973,145.63,145.57,31.87277427]
[1724942011372,23.83268973,145.63,145.51,19.33918355]
[1724942011373,16.96598973,145.63,145.55,31.87277427]
[1724942011579,6.8683,145.6,145.53,31.87277427]
[1724942011775,1.37548973,145.59,145.53,31.87277427]
[1724942011980,1.37548973,145.59,145.55,31.87277427]
[1724942012166,6.868,145.61,145.55,31.87277427]
[1724942012481,1.37548973,145.6,145.55,31.87277427]
[1724942014363,1.37548973,145.6,145.53,31.87277427]
[1724942014578,22.4075,145.57,145.51,31.87277427]
[1724942014772,1.37548973,145.56,145.51,31.87277427]
[1724942016281,16.91338973,145.57,145.53,31.87277427]
[1724942017158,15.5379,145.57,145.53,31.87277427]
[1724942017357,6.8682,145.6,145.55,31.87277427]
[1724942017580,1.37548973,145.59,145.55,31.87277427]
[1724942019778,1.37548973,145.6,145.55,31.87277427]
[1724942020684,6.8689,145.59,145.53,31.87277427]
[1724942020864,8.24448973,145.58,145.53,31.87277427]
[1724942021069,1.37548973,145.57,145.53,31.87277427]
[1724942021393,6.869,145.59,145.53,31.87277427]
[1724942021572,6.869,145.59,145.47,16.2931]
[1724942021573,1.37548973,145.58,145.51,31.87277427]
[1724942021869,1.37548973,145.57,145.51,31.87277427]
[1724942022282,1.37548973,145.57,145.46,34.63464774]
[1724942022283,6.8705,145.55,145.49,31.87277427]
[1724942022461,1.37548973,145.54,145.49,31.87277427]
[1724942022662,1.37548973,145.55,145.51,31.87277427]
[1724942022886,22.0788,145.59,145.51,31.87277427]
[1724942023093,15.2101,145.59,145.53,31.87277427]
[1724942023276,1.37548973,145.58,145.53,31.87277427]
[1724942024903,8.24498973,145.58,145.51,31.87277427]
[1724942025275,0.12549,145.57,145.49,31.87277427]
[1724942025473,6.99509,145.57,145.49,31.87277427]
[1724942025674,1.37548973,145.56,145.49,31.87277427]
[1724942026081,6.5304,145.55,145.49,31.87277427]
[1724942026290,1.37548973,145.54,145.47,31.87277427]
[1724942027279,6.8722,145.52,145.45,31.87277427]
[1724942027481,8.24818973,145.51,145.43,31.87277427]
[1724942027701,1.37548973,145.51,145.43,31.87277427]
[1724942028081,8.24778973,145.51,145.43,31.87277427]
[1724942028284,6.5358,145.49,145.43,31.87277427]
[1724942028486,1.37548973,145.48,145.43,31.87277427]
[1724942029297,1.37548973,145.48,145.41,31.87277427]
[1724942029498,15.0589,145.47,145.39,31.87277427]
[1724942029803,1.37548973,145.46,145.41,31.87277427]
[1724942030010,1.37548973,145.45,145.41,31.87277427]
[1724942031019,1.37548973,145.46,145.41,31.87277427]
[1724942031310,1.37548973,145.45,145.41,31.87277427]
[1724942031520,1.37548973,145.46,145.41,31.87277427]
[1724942031701,15.0589,145.47,145.43,31.87277427]
[1724942032088,1.37548973,145.46,145.43,31.87277427]
[1724942032787,15.0589,145.47,145.43,31.87277427]
[1724942033206,1.37548973,145.46,145.43,31.87277427]
[1724942033406,1.37548973,145.46,145.41,31.87277427]
[1724942036612,1.37548973,145.46,145.34,22.22]
[1724942036819,1.37548973,145.46,145.39,31.87277427]
[1724942037196,53.25018973,145.46,145.39,31.87277427]
[1724942037513,0.12549,145.45,145.39,31.87277427]
[1724942037891,1.37548973,145.46,145.39,31.87277427]
[1724942038503,1.37548973,145.46,145.41,31.87277427]
[1724942040612,16.43438973,145.47,145.43,31.87277427]
[1724942040803,15.0589,145.47,145.43,31.87277427]
[1724942041224,15.0589,145.47,145.44,1.37498751]
[1724942041543,6.5358,145.49,145.45,31.87277427]
[1724942041705,7.91128973,145.49,145.45,31.87277427]
[1724942041906,1.37548973,145.48,145.45,31.87277427]
[1724942042318,6.5358,145.49,145.45,31.87277427]
[1724942042723,1.37548973,145.48,145.43,31.87277427]
[1724942044213,6.5358,145.49,145.43,31.87277427]
[1724942044718,1.37548973,145.48,145.43,31.87277427]
[1724942045225,7.91128973,145.49,145.43,31.87277427]
[1724942045422,6.5358,145.49,145.45,31.87277427]
[1724942045612,6.5358,145.49,145.46,1.37480344]
[1724942045816,1.37548973,145.48,145.45,31.87277427]
[1724942046125,6.5358,145.49,145.45,31.87277427]
[1724942046325,1.37548973,145.5,145.45,31.87277427]
[1724942047310,1.37548973,145.5,145.43,31.87277427]
[1724942048535,1.37548973,145.5,145.45,31.87277427]
[1724942048706,16.39928973,145.51,145.47,31.87277427]
[1724942048906,15.0238,145.51,145.48,1.37464018]
[1724942049307,15.0238,145.51,145.49,31.87277427]
[1724942051813,16.2659,145.55,145.49,31.87277427]
[1724942052021,17.64138973,145.55,145.5,1.3744221]
[1724942052334,1.37548973,145.54,145.49,31.87277427]
[1724942054937,1.37548973,145.54,145.47,31.87277427]
[1724942055235,8.24688973,145.54,145.47,31.87277427]
[1724942055730,6.8716,145.53,145.45,31.87277427]
[1724942055935,1.37548973,145.52,145.45,31.87277427]
[1724942056257,1.37548973,145.51,145.45,31.87277427]
[1724942056760,6.8739,145.48,145.4,31.87277427]
[1724942057046,6.8739,145.48,145.42,31.87277427]
[1724942057047,1.37548973,145.48,145.42,31.87277427]
[1724942058142,1.37548973,145.48,145.44,31.87277427]
[1724942058352,15.6112,145.49,145.44,31.87277427]
[1724942058552,15.6112,145.49,145.46,31.87277427]
[1724942062227,16.42839,145.53,145.46,31.87277427]
[1724942062426,1.37548973,145.52,145.47,1.37465878]
[1724942062743,1.37548973,145.51,145.47,1.37465878]
[1724942063336,1.37548973,145.51,145.46,31.87277427]
[1724942063542,1.37548973,145.52,145.46,31.87277427]
[1724942063848,1.37548973,145.51,145.46,31.87277427]
[1724942064043,16.3029,145.53,145.46,31.87277427]
[1724942065150,1.37548973,145.52,145.46,31.87277427]
[1724942065838,1.37548973,145.51,145.46,31.87277427]
[1724942066132,1.37548973,145.51,145.48,12.72599796]
[1724942066847,1.37548973,145.52,145.48,12.72599796]
[1724942067152,1.37548973,145.51,145.48,12.72599796]
[1724942067536,1.37548973,145.51,145.4,1.37470911]
[1724942067739,1.37548973,145.51,145.45,12.72599796]
[1724942067947,8.24738973,145.52,145.47,12.72599796]
[1724942068245,1.37548973,145.51,145.47,12.72599796]
[1724942069349,6.8729,145.5,145.41,0.25098]
[1724942069556,1.37548973,145.49,145.44,12.72599796]
[1724942070537,1.37548973,145.5,145.46,12.72599796]
[1724942070850,2.57397337,145.52,145.46,12.72599796]
[1724942071054,1.37548973,145.51,145.46,12.72599796]
[1724942071661,8.24798973,145.51,145.46,12.72599796]
[1724942073245,8.24798973,145.51,145.4,0.25098]
[1724942073449,8.24798973,145.51,145.45,12.72599796]
[1724942074167,6.8728,145.5,145.45,12.72599796]
[1724942074345,1.37548973,145.49,145.45,12.72599796]
[1724942076245,1.37548973,145.5,145.47,12.72599796]
[1724942076451,1.37548973,145.51,145.47,12.72599796]
[1724942077547,1.37548973,145.52,145.47,12.72599796]
[1724942077861,1.37548973,145.51,145.47,12.72599796]
[1724942084357,8.24788973,145.51,145.47,12.72599796]
[1724942084758,1.37548973,145.51,145.47,12.72599796]
[1724942084956,1.37548973,145.52,145.47,12.72599796]
[1724942085180,1.37548973,145.51,145.47,12.72599796]
[1724942086065,1.37548973,145.52,145.47,12.72599796]
[1724942086263,1.37548973,145.51,145.47,12.72599796]
[1724942087476,1.37548973,145.52,145.49,12.72599796]
[1724942088579,6.4609,145.54,145.51,12.72599796]
[1724942088782,1.37548973,145.56,145.51,12.72599796]
[1724942090652,8.24548973,145.56,145.51,12.72599796]
[1724942092487,1.37548973,145.56,145.43,16.4401]
[1724942092774,1.37548973,145.56,145.44,20.0]
[1724942092775,0.25098,145.55,145.44,20.0]
[1724942092963,0.25098,145.55,145.47,12.72599796]
[1724942092964,1.37548973,145.54,145.47,12.72599796]
[1724942093168,6.8714,145.53,145.47,12.72599796]
[1724942093366,1.37548973,145.52,145.47,12.72599796]
[1724942093571,1.37548973,145.51,145.47,12.72599796]
[1724942093782,0.25098,145.55,145.47,12.72599796]
[1724942093783,1.37548973,145.52,145.47,12.72599796]
[1724942095956,1.37548973,145.53,145.49,12.72599796]
[1724942096356,1.37548973,145.53,145.43,16.4401]
[1724942096568,1.37548973,145.53,145.48,12.72599796]
[1724942098394,16.4364,145.51,145.46,12.72599796]
[1724942098579,1.37548973,145.5,145.46,12.72599796]
[1724942100477,1.37548973,145.5,145.43,1.37491038]
[1724942100478,17.81188973,145.51,145.48,12.72599796]
[1724942101098,16.4364,145.51,145.48,12.72599796]
[1724942101309,17.81188973,145.51,145.48,12.72599796]
[1724942101483,16.4364,145.51,145.48,12.72599796]
[1724942102196,6.0493,145.52,145.5,12.72599796]
[1724942102575,1.37548973,145.53,145.5,12.72599796]
[1724942103097,1.37548973,145.55,145.52,12.72599796]
[1724942103397,1.37548973,145.55,145.54,12.72599796]
[1724942103577,15.9233,145.57,145.54,12.72599796]
[1724942103578,1.37548973,145.56,145.54,12.72599796]
[1724942105889,1.37548973,145.56,145.52,12.72599796]
[1724942106201,17.29878973,145.57,145.54,12.72599796]
[1724942106681,1.37548973,145.57,145.54,12.72599796]
[1724942106879,1.37548973,145.58,145.54,12.72599796]
[1724942107795,1.37548973,145.58,145.56,12.72599796]
[1724942108695,1.37548973,145.6,145.56,12.72599796]
[1724942108899,1.37548973,145.6,145.58,12.72599796]
[1724942109573,1.37548973,145.6,145.56,12.72599796]
[1724942110077,8.24368973,145.6,145.54,12.72599796]
[1724942110588,6.8686,145.59,145.54,12.72599796]
[1724942110789,1.37548973,145.58,145.54,12.72599796]
[1724942110989,1.37548973,145.57,145.54,12.72599796]
[1724942111496,1.37548973,145.59,145.54,12.72599796]
[1724942111878,1.37548973,145.59,145.56,12.72599796]
[1724942112521,1.37548973,145.6,145.56,12.72599796]
[1724942113900,16.98208973,145.61,145.58,12.72599796]
[1724942114805,1.37548973,145.61,145.58,12.72599796]
[1724942115100,7.99008973,145.62,145.58,12.72599796]
[1724942115882,14.85768973,145.62,145.58,12.72599796]
[1724942116083,7.99008973,145.62,145.58,12.72599796]
[1724942116284,1.37548973,145.61,145.58,12.72599796]
[1724942116692,8.24218973,145.63,145.58,12.72599796]
[1724942117386,6.8672,145.62,145.53,6.2731]
[1724942117701,21.5906,145.6,145.51,12.72599796]
[1724942117877,21.5906,145.6,145.47,16.3675]
[1724942117878,1.37548973,145.59,145.55,12.72599796]
[1724942118075,1.37548973,145.59,145.57,12.72599796]
[1724942118708,1.37548973,145.59,145.55,12.72599796]
[1724942120511,8.24428973,145.59,145.48,6.1209]
[1724942120807,1.37548973,145.59,145.54,12.72599796]
[1724942121393,1.37548973,145.59,145.56,12.72599796]
[1724942121596,8.24408973,145.59,145.54,12.72599796]
[1724942121797,1.37548973,145.59,145.54,12.72599796]
[1724942122204,1.37548973,145.59,145.56,12.72599796]
[1724942124410,16.86258973,145.6,145.56,12.72599796]
[1724942124802,1.37548973,145.6,145.56,12.72599796]
[1724942125010,6.1307,145.63,145.58,12.72599796]
[1724942125011,1.37548973,145.61,145.58,12.72599796]
[1724942125182,1.37548973,145.62,145.58,12.72599796]
[1724942125600,1.19744043,145.64,145.53,66.31449184]
[1724942125601,1.19744043,145.64,145.6,12.72599796]
[1724942125790,1.37548973,145.66,145.63,12.72599796]
[1724942126191,1.37548973,145.66,145.54,6.6174]
[1724942126390,1.37548973,145.66,145.63,12.72599796]
[1724942126790,1.37548973,145.66,145.55,65.25098]
[1724942126986,1.37548973,145.66,145.6,12.72599796]
[1724942127310,1.37548973,145.66,145.62,12.72599796]
[1724942127989,1.37548973,145.66,145.6,31.75403448]
[1724942130027,8.24078973,145.66,145.6,31.75403448]
[1724942130203,6.8658,145.65,145.58,31.75403448]
[1724942130402,1.37548973,145.64,145.58,31.75403448]
[1724942131404,1.37548973,145.65,145.6,31.75403448]
[1724942132422,1.37548973,145.66,145.6,31.75403448]
[1724942135318,1.37548973,145.66,145.62,31.75403448]
[1724942136507,1.37548973,145.7,145.64,31.75403448]
[1724942136734,1.37548973,145.7,145.6,31.75403448]
[1724942136735,1.37548973,145.7,145.68,31.75403448]
[1724942137035,16.1172,145.71,145.68,31.75403448]
[1724942137207,1.37548973,145.7,145.66,31.75403448]
[1724942138335,1.37548973,145.7,145.64,31.75403448]
[1724942138638,1.37548973,145.7,145.66,31.75403448]
[1724942138800,17.49268973,145.71,145.66,31.75403448]
[1724942139301,1.37548973,145.73,145.66,31.75403448]
[1724942140516,8.23758973,145.73,145.66,31.75403448]
[1724942142234,1.37548973,145.72,145.66,31.75403448]
[1724942142432,8.23698973,145.74,145.66,31.75403448]
[1724942142934,1.37548973,145.73,145.66,31.75403448]
[1724942143715,0.12549,145.72,145.64,31.75403448]
[1724942143917,1.37548973,145.73,145.66,31.75403448]
[1724942145010,1.37548973,145.74,145.68,31.75403448]
[1724942146218,1.37548973,145.74,145.7,31.75403448]
[1724942146834,21.6313,145.75,145.7,31.75403448]
[1724942147235,15.6229,145.75,145.7,31.75403448]
[1724942147715,6.3777,145.79,145.69,45.0]
[1724942147716,1.37548973,145.78,145.72,31.75403448]
[1724942151741,1.37548973,145.78,145.74,31.75403448]
[1724942152115,1.37548973,145.78,145.75,12.67844448]
[1724942153519,6.8605,145.77,145.6,5.0]
[1724942153718,1.37548973,145.77,145.72,12.67844448]
[1724942153930,1.37548973,145.77,145.67,50.71377792]
[1724942153931,1.37548973,145.78,145.74,12.67844448]
[1724942157652,1.37548973,145.78,145.67,50.71377792]
[1724942157653,6.8583,145.81,145.76,12.67844448]
[1724942158033,1.37548973,145.8,145.76,12.67844448]
[1724942158440,1.37548973,145.81,145.76,12.67844448]
[1724942158644,1.37548973,145.81,145.78,12.67844448]
[1724942159436,1.37548973,145.82,145.78,12.67844448]
[1724942159636,8.23338973,145.82,145.78,12.67844448]
[1724942159838,8.23338973,145.82,145.76,12.67844448]
[1724942160233,6.8583,145.81,145.76,12.67844448]
[1724942160435,1.37548973,145.8,145.76,12.67844448]
[1724942160631,1.37548973,145.8,145.73,12.67844448]
[1724942160632,1.37548973,145.79,145.73,12.67844448]
[1724942160829,8.23468973,145.79,145.68,22.2634]
[1724942161038,8.23468973,145.79,145.73,12.67844448]
[1724942161241,1.37548973,145.79,145.73,12.67844448]
[1724942161642,8.23468973,145.79,145.73,12.67844448]
[1724942162048,1.37548973,145.79,145.71,31.70310595]
[1724942162242,6.8593,145.79,145.71,31.70310595]
[1724942162439,1.37548973,145.78,145.71,31.70310595]
[1724942162640,22.5545,145.77,145.71,31.70310595]
[1724942162861,1.37548973,145.76,145.69,31.70310595]
[1724942163043,15.694,145.77,145.71,31.70310595]
[1724942163448,1.37548973,145.76,145.69,31.70310595]
[1724942163759,8.23638973,145.76,145.69,31.70310595]
[1724942163949,8.23598973,145.76,145.69,31.70310595]
[1724942164146,1.37548973,145.76,145.69,31.70310595]
[1724942164532,8.23608973,145.76,145.69,31.70310595]
[1724942164860,6.8611,145.75,145.69,31.70310595]
[1724942165051,1.37548973,145.74,145.69,31.70310595]
[1724942165460,1.37548973,145.74,145.68,31.70310595]
[1724942166376,1.37548973,145.75,145.68,31.70310595]
[1724942166541,1.37548973,145.75,145.69,45.0]
[1724942166742,8.23668973,145.75,145.68,31.70310595]
[1724942167461,1.37548973,145.74,145.68,31.70310595]
[1724942168464,1.37548973,145.75,145.68,31.70310595]
[1724942168653,8.23678973,145.75,145.68,31.70310595]
[1724942169445,1.37548973,145.74,145.68,31.70310595]
[1724942170153,1.37548973,145.76,145.7,31.70310595]
[1724942170470,15.694,145.77,145.72,31.70310595]
[1724942170653,1.37548973,145.76,145.72,31.70310595]
[1724942170851,1.37548973,145.76,145.7,31.70310595]
[1724942171048,17.06948973,145.77,145.72,31.70310595]
[1724942171244,15.694,145.77,145.73,1.37221128]
[1724942171640,17.06948973,145.77,145.72,31.70310595]
[1724942171842,15.694,145.77,145.72,31.70310595]
[1724942172341,17.06948973,145.77,145.72,31.70310595]
[1724942173169,15.694,145.77,145.72,31.70310595]
[1724942173373,17.06948973,145.77,145.72,31.70310595]
[1724942173573,1.37548973,145.76,145.72,31.70310595]
[1724942173746,1.37548973,145.76,145.7,31.70310595]
[1724942174365,1.37548973,145.76,145.68,31.70310595]
[1724942174945,8.23618973,145.76,145.68,31.70310595]
[1724942175163,6.8612,145.75,145.68,31.70310595]
[1724942175466,1.37548973,145.74,145.68,31.70310595]
[1724942175677,15.694,145.77,145.66,31.70310595]
[1724942175678,1.37548973,145.73,145.66,31.70310595]
[1724942176058,23.1325,145.72,145.66,31.70310595]
[1724942176249,1.37548973,145.71,145.66,31.70310595]
[1724942176878,1.37548973,145.7,145.64,31.70310595]
[1724942178671,8.23888973,145.7,145.64,31.70310595]
[1724942179080,1.37548973,145.69,145.64,31.70310595]
[1724942182160,8.23928973,145.69,145.64,31.70310595]
[1724942182363,1.37548973,145.68,145.64,31.70310595]
[1724942183378,1.37548973,145.69,145.64,31.70310595]
[1724942184674,8.23948973,145.69,145.64,31.70310595]
[1724942184854,1.37548973,145.68,145.64,31.70310595]
[1724942185171,1.37548973,145.67,145.62,31.70310595]
[1724942186176,8.24018973,145.68,145.62,31.70310595]
[1724942186354,1.37548973,145.67,145.62,31.70310595]
[1724942186550,6.0584,145.66,145.6,31.70310595]
[1724942186756,6.8667,145.64,145.57,31.70310595]
[1724942186968,1.37548973,145.63,145.57,31.70310595]
[1724942187164,1.37548973,145.63,145.55,31.70310595]
[1724942187882,1.37548973,145.62,145.55,31.70310595]
[1724942188080,1.37548973,145.61,145.55,31.70310595]
[1724942188379,17.41318973,145.61,145.55,31.70310595]
[1724942188557,1.37548973,145.6,145.55,31.70310595]
[1724942189783,1.37548973,145.6,145.53,31.70310595]
[1724942190971,7.39698973,145.6,145.53,31.70310595]
[1724942192274,7.39698973,145.6,145.54,1.37392439]
[1724942193188,6.0215,145.6,145.54,45.0]
[1724942193366,6.0215,145.6,145.57,31.70310595]
[1724942193564,17.41318973,145.61,145.57,31.70310595]
[1724942194378,16.0377,145.61,145.57,31.70310595]
[1724942194586,1.37548973,145.6,145.57,31.70310595]
[1724942194770,1.37548973,145.6,145.55,31.70310595]
[1724942195269,17.41318973,145.61,145.57,31.70310595]
[1724942195582,1.37548973,145.6,145.55,31.70310595]
[1724942198386,0.12549,145.65,145.52,0.12549]
[1724942198387,1.37548973,145.65,145.59,31.70310595]
[1724942198593,1.37548973,145.64,145.59,31.70310595]
[1724942199886,29.7884,145.66,145.61,31.70310595]
[1724942199887,1.37548973,145.65,145.61,31.70310595]
[1724942200391,1.37548973,145.64,145.61,31.70310595]
[1724942200584,1.37548973,145.64,145.59,31.70310595]
[1724942200772,1.19727144,145.68,145.61,31.70310595]
[1724942200977,1.37548973,145.67,145.63,31.70310595]
[1724942201889,1.37548973,145.68,145.63,31.70310595]
[1724942202095,1.37548973,145.67,145.63,31.70310595]
[1724942202896,2.57238191,145.71,145.63,31.70310595]
[1724942203098,1.50097973,145.7,145.63,31.70310595]
[1724942203489,6.8639,145.69,145.63,31.70310595]
[1724942203694,1.37548973,145.68,145.63,31.70310595]
[1724942203891,1.37548973,145.67,145.63,31.70310595]
[1724942205002,1.37548973,145.68,145.63,31.70310595]
[1724942205203,1.37548973,145.67,145.63,31.70310595]
[1724942206096,8.36477973,145.7,145.63,31.70310595]
[1724942206285,6.864,145.69,145.63,31.70310595]
[1724942206486,22.3785,145.66,145.6,31.70310595]
[1724942206798,1.37548973,145.65,145.6,31.70310595]
[1724942206999,1.37548973,145.64,145.6,31.70310595]
[1724942208004,1.37548973,145.65,145.6,31.70310595]
[1724942208201,1.37548973,145.64,145.6,31.70310595]
[1724942208796,1.37548973,145.65,145.6,31.70310595]
[1724942209487,23.75398973,145.66,145.61,1.37333668]
[1724942209687,15.7966,145.66,145.63,31.70310595]
[1724942211192,15.7966,145.66,145.61,31.70310595]
[1724942214910,1.37548973,145.65,145.59,31.70310595]
[1724942215717,1.37548973,145.64,145.59,31.70310595]
[1724942216412,1.37548973,145.65,145.61,31.70310595]
[1724942219621,1.37548973,145.65,145.59,31.70310595]
[1724942220800,17.17208973,145.66,145.61,31.70310595]
[1724942221497,17.17208973,145.66,145.63,31.70310595]
[1724942221697,15.7966,145.66,145.63,31.70310595]
[1724942223310,15.7966,145.66,145.64,1.37321806]
[1724942223510,1.37548973,145.68,145.65,31.70310595]
[1724942226603,16.64578973,145.7,145.67,31.70310595]
[1724942226801,15.2703,145.7,145.67,31.70310595]
[1724942227218,1.37548973,145.69,145.65,31.70310595]
[1724942228819,1.37548973,145.74,145.67,31.70310595]
[1724942229026,1.37548973,145.74,145.7,31.70310595]